bitfinex/quotes_BTCUSD_20240927
["timestamp","ask_amount","ask_price","bid_price","bid_amount"]
[1727445857783,0.04542648,65949.0,65948.0,0.151634]
[1727445858062,0.001827,65950.0,65949.0,0.156632]
[1727445858329,0.001827,65950.0,65949.0,0.166632]
[1727445858566,0.000827,65950.0,65949.0,0.166632]
[1727445859048,0.001827,65950.0,65949.0,0.168632]
[1727445859292,0.001827,65950.0,65949.0,0.170632]
[1727445859512,0.001827,65950.0,65949.0,0.1736645]
[1727445859752,0.001827,65950.0,65949.0,0.1716645]
[1727445859753,0.000827,65950.0,65949.0,0.1716645]
[1727445859973,0.000867,65950.0,65949.0,0.1726645]
[1727445860680,0.002867,65950.0,65949.0,0.1716645]
[1727445860909,0.011767,65950.0,65949.0,0.1716645]
[1727445861675,0.011767,65950.0,65949.0,0.168632]
[1727445861913,0.012767,65950.0,65949.0,0.169632]
[1727445862158,0.009767,65950.0,65949.0,0.168632]
[1727445862659,0.010767,65950.0,65949.0,0.37625215]
[1727445863147,0.010767,65950.0,65949.0,0.37425215]
[1727445863635,0.010767,65950.0,65949.0,0.35925215]
[1727445863870,0.16605494,65950.0,65949.0,0.35925215]
[1727445864110,0.16505494,65950.0,65949.0,0.20562015]
[1727445864345,0.16505494,65950.0,65949.0,0.20662015]
[1727445864346,0.16605494,65950.0,65949.0,0.20662015]
[1727445864576,0.31668494,65950.0,65949.0,0.20727415]
[1727445864807,0.60556713,65950.0,65949.0,0.20727415]
[1727445865040,0.45793713,65950.0,65949.0,0.20727415]
[1727445865277,0.45393713,65950.0,65949.0,0.20727415]
[1727445865566,0.45993713,65950.0,65949.0,0.20727415]
[1727445865799,0.45393713,65950.0,65949.0,0.20727415]
[1727445866274,0.45893713,65950.0,65949.0,0.20727415]
[1727445866743,0.61056713,65950.0,65949.0,0.20727415]
[1727445866997,0.65015496,65950.0,65949.0,0.20727415]
[1727445867236,0.62456713,65950.0,65949.0,0.20727415]
[1727445867480,0.18405494,65950.0,65949.0,0.20727415]
[1727445867968,0.18405494,65950.0,65949.0,0.35890615]
[1727445869214,0.028767,65950.0,65949.0,0.35890615]
[1727445869928,0.028767,65950.0,65949.0,0.36390615]
[1727445870723,0.018767,65950.0,65949.0,0.81329409]
[1727445870964,0.009767,65950.0,65949.0,0.37590615]
[1727445871202,0.027767,65950.0,65949.0,0.37590615]
[1727445871444,0.027767,65950.0,65949.0,0.37390615]
[1727445871926,0.027767,65950.0,65949.0,0.36390615]
[1727445872185,0.018767,65950.0,65949.0,0.37390615]
[1727445872429,0.019767,65950.0,65949.0,0.37590615]
[1727445872682,0.009767,65950.0,65949.0,0.37390615]
[1727445873185,0.010767,65950.0,65949.0,0.37590615]
[1727445873728,0.009767,65950.0,65949.0,0.37390615]
[1727445873968,0.009767,65950.0,65949.0,0.37590615]
[1727445874206,0.010767,65950.0,65949.0,0.37990615]
[1727445876172,0.010767,65950.0,65949.0,0.36290615]
[1727445876173,0.16605494,65950.0,65949.0,0.36290615]
[1727445877170,0.16605494,65950.0,65949.0,0.36090615]
[1727445877423,0.31768494,65950.0,65949.0,0.21027415]
[1727445877656,0.36306778,65950.0,65949.0,0.21027415]
[1727445877893,0.36306778,65950.0,65949.0,0.20927415]
[1727445878122,0.21043778,65950.0,65949.0,0.35890615]
[1727445878379,0.21043778,65950.0,65949.0,0.36090615]
[1727445878623,0.36206778,65950.0,65949.0,0.20727415]
[1727445879114,0.32868494,65950.0,65949.0,0.20727415]
[1727445879345,0.22243739,65950.0,65949.0,0.20727415]
[1727445879576,0.19105494,65950.0,65949.0,0.20727415]
[1727445880087,0.32868494,65950.0,65949.0,0.20727415]
[1727445880332,0.19005494,65950.0,65949.0,0.20727415]
[1727445880558,0.23543609,65950.0,65949.0,0.20727415]
[1727445880790,0.38706609,65950.0,65949.0,0.20727415]
[1727445882039,0.34168494,65950.0,65949.0,0.20727415]
[1727445882262,0.40975667,65950.0,65949.0,0.20727415]
[1727445882489,0.34168494,65950.0,65949.0,0.20727415]
[1727445882963,0.19005494,65950.0,65949.0,0.20727415]
[1727445883478,0.19005494,65950.0,65949.0,0.35890615]
[1727445883699,0.034767,65950.0,65949.0,0.35890615]
[1727445883937,0.19005494,65950.0,65949.0,0.20727415]
[1727445884928,0.19005494,65950.0,65949.0,0.35890615]
[1727445885699,0.19005494,65950.0,65949.0,0.20727415]
[1727445885905,0.19005494,65950.0,65949.0,0.35890615]
[1727445887418,0.034767,65950.0,65949.0,0.35890615]
[1727445887633,0.034767,65950.0,65949.0,0.37390615]
[1727445888734,0.022767,65950.0,65949.0,0.37390615]
[1727445888948,0.022767,65950.0,65949.0,0.37590615]
[1727445889166,0.023767,65950.0,65949.0,0.37790615]
[1727445890228,0.023767,65950.0,65949.0,0.53319409]
[1727445890229,0.010767,65950.0,65949.0,0.53319409]
[1727445890656,0.023767,65950.0,65949.0,0.53319409]
[1727445891075,0.010767,65950.0,65949.0,0.37790615]
[1727445891528,0.010767,65950.0,65949.0,0.37890615]
[1727445894537,0.010767,65950.0,65949.0,0.38090615]
[1727445895866,0.010767,65950.0,65949.0,0.37890615]
[1727445898128,0.010767,65950.0,65949.0,0.53619409]
[1727445898359,0.010767,65950.0,65949.0,0.37890615]
[1727445900282,0.010767,65950.0,65949.0,0.38090615]
[1727445900481,0.010767,65950.0,65949.0,0.36890615]
[1727445900689,0.010767,65950.0,65949.0,0.37890615]
[1727445901909,0.009767,65950.0,65949.0,0.37690615]
[1727445902124,0.000867,65950.0,65949.0,0.37990615]
[1727445902332,0.000867,65950.0,65949.0,0.36490615]
[1727445902471,0.15615494,65950.0,65949.0,0.21027415]
[1727445902884,0.000867,65950.0,65949.0,0.36390615]
[1727445903091,0.000867,65950.0,65949.0,0.36890615]
[1727445903505,0.000867,65950.0,65949.0,0.36190615]
[1727445903773,0.000867,65950.0,65949.0,0.36690615]
[1727445903774,0.014867,65950.0,65949.0,0.36690615]
[1727445904432,0.014867,65950.0,65949.0,0.36390615]
[1727445904433,0.000867,65950.0,65949.0,0.36390615]
[1727445904880,0.013867,65950.0,65949.0,0.36490615]
[1727445905075,0.15615494,65950.0,65949.0,0.35890615]
[1727445905292,0.15715494,65950.0,65949.0,0.35890615]
[1727445905725,0.15715494,65950.0,65949.0,0.20727415]
[1727445905976,0.15915494,65950.0,65949.0,0.35890615]
[1727445907108,0.15915494,65950.0,65949.0,0.20727415]
[1727445907341,0.31078494,65950.0,65949.0,0.20727415]
[1727445907570,0.69006842,65950.0,65949.0,0.20727415]
[1727445907766,0.758137,65950.0,65949.0,0.20727415]
[1727445907997,0.81432378,65950.0,65949.0,0.20727415]
[1727445908454,0.81432378,65950.0,65935.0,0.22790811]
[1727445908455,0.151662,65936.0,65935.0,0.22790811]
[1727445908689,0.59923611,65936.0,65935.0,0.22790811]
[1727445908979,0.64443611,65936.0,65935.0,0.22790811]
[1727445909196,0.151674,65931.0,65925.0,0.303371]
[1727445909398,0.15528794,65930.0,65925.0,0.303371]
[1727445909603,0.15528794,65930.0,65929.0,0.37958611]
[1727445909816,0.15528794,65930.0,65929.0,0.151678]
[1727445910247,0.15528794,65930.0,65927.0,0.303365]
[1727445910501,0.15528794,65930.0,65928.0,0.151678]
[1727445910674,0.15528794,65930.0,65929.0,0.151678]
[1727445911076,0.15528794,65930.0,65924.0,0.303376]
[1727445911475,0.15528794,65930.0,65923.0,0.303383]
[1727445911476,0.151682,65928.0,65923.0,0.151689]
[1727445911678,0.15528794,65927.0,65920.0,0.22790811]
[1727445911903,0.15528794,65927.0,65922.0,0.303384]
[1727445912146,0.04537965,65938.0,65935.0,0.151664]
[1727445912362,0.04537965,65938.0,65921.0,0.005]
[1727445912363,0.15528794,65937.0,65927.0,0.303363]
[1727445912561,0.005,65930.0,65929.0,0.151678]
[1727445912773,0.15528794,65930.0,65929.0,0.151678]
[1727445913118,0.006,65930.0,65929.0,0.151678]
[1727445913376,0.006,65930.0,65929.0,0.166678]
[1727445913606,0.0825,65949.0,65929.0,0.015]
[1727445913872,0.0825,65949.0,65927.0,0.577462]
[1727445913873,0.22790811,65943.0,65942.0,0.151648]
[1727445914050,0.15528794,65943.0,65942.0,0.151648]
[1727445914281,0.000867,65950.0,65939.0,0.22790811]
[1727445914509,0.000867,65950.0,65949.0,0.151632]
[1727445915419,0.000867,65950.0,65949.0,0.166632]
[1727445916039,0.008867,65950.0,65949.0,0.167632]
[1727445916598,0.000867,65950.0,65949.0,0.168632]
[1727445916877,0.009867,65950.0,65949.0,0.268632]
[1727445917327,0.000867,65950.0,65949.0,0.268632]
[1727445917568,0.000867,65950.0,65949.0,0.270632]
[1727445917792,0.004867,65950.0,65949.0,0.270632]
[1727445918020,0.000867,65950.0,65949.0,0.270632]
[1727445918236,0.000867,65950.0,65949.0,0.166632]
[1727445918452,0.000867,65950.0,65949.0,0.161632]
[1727445918691,0.000867,65950.0,65949.0,0.156632]
[1727445919184,0.000867,65950.0,65949.0,0.161632]
[1727445919425,0.000867,65950.0,65949.0,0.156632]
[1727445919661,0.000867,65950.0,65949.0,0.159632]
[1727445920151,0.000867,65950.0,65949.0,0.160632]
[1727445920419,0.000867,65950.0,65949.0,0.170632]
[1727445920662,0.000867,65950.0,65949.0,0.272632]
[1727445920876,0.000867,65950.0,65949.0,0.271632]
[1727445921062,0.000867,65950.0,65949.0,0.272632]
[1727445921546,0.000867,65950.0,65949.0,0.269632]
[1727445921771,0.000867,65950.0,65949.0,0.273632]
[1727445922204,0.000867,65950.0,65949.0,0.274632]
[1727445922627,0.000867,65950.0,65949.0,0.276288]
[1727445923140,0.000867,65950.0,65949.0,0.27932037]
[1727445923606,0.000867,65950.0,65949.0,0.35902037]
[1727445923848,0.000867,65950.0,65949.0,0.355988]
[1727445924350,0.000867,65950.0,65949.0,0.354988]
[1727445924595,0.000867,65950.0,65949.0,0.349988]
[1727445924868,0.002867,65950.0,65949.0,0.357988]
[1727445925094,0.001867,65950.0,65949.0,0.348988]
[1727445925336,0.000867,65950.0,65949.0,0.347988]
[1727445925574,0.001867,65950.0,65949.0,0.354988]
[1727445925829,0.001867,65950.0,65949.0,0.348988]
[1727445926307,0.001867,65950.0,65949.0,0.271288]
[1727445927248,0.002867,65950.0,65949.0,0.281288]
[1727445927461,0.001867,65950.0,65949.0,0.271288]
[1727445927683,0.000867,65950.0,65949.0,0.270288]
[1727445927896,0.001867,65950.0,65949.0,0.280288]
[1727445928126,0.000867,65950.0,65949.0,0.272288]
[1727445928573,0.000867,65950.0,65949.0,0.273288]
[1727445929329,0.000867,65950.0,65949.0,0.173288]
[1727445930045,0.000867,65950.0,65949.0,0.158288]
[1727445930541,0.000867,65950.0,65949.0,0.006656]
[1727445930542,0.15615494,65950.0,65949.0,0.006656]
[1727445930769,0.15615494,65950.0,65949.0,0.003656]
[1727445931001,0.15615494,65950.0,65949.0,0.155288]
[1727445931207,0.15915494,65950.0,65949.0,0.155288]
[1727445931470,0.15615494,65950.0,65949.0,0.153288]
[1727445931971,0.17115494,65950.0,65949.0,0.154288]
[1727445932204,0.16015494,65950.0,65949.0,0.153288]
[1727445932434,0.15615494,65950.0,65949.0,0.001656]
[1727445932701,0.16815494,65950.0,65949.0,0.001656]
[1727445932935,0.31978494,65950.0,65949.0,0.001656]
[1727445933604,0.33178494,65950.0,65949.0,0.002656]
[1727445934829,0.43228494,65950.0,65949.0,0.002656]
[1727445935840,0.30297495,65950.0,65949.0,0.002656]
[1727445936043,0.40928494,65950.0,65949.0,0.002656]
[1727445936273,0.18015494,65950.0,65949.0,0.154288]
[1727445939746,0.024867,65950.0,65949.0,0.154288]
[1727445939979,0.024867,65950.0,65949.0,0.169288]
[1727445940222,0.024867,65950.0,65949.0,0.164288]
[1727445940448,0.024867,65950.0,65949.0,0.159288]
[1727445940896,0.012867,65950.0,65949.0,0.158288]
[1727445941386,0.017867,65950.0,65949.0,0.169288]
[1727445941627,0.017867,65950.0,65949.0,0.171288]
[1727445941855,0.005867,65950.0,65949.0,0.171288]
[1727445942091,0.017867,65950.0,65949.0,0.171288]
[1727445942801,0.005867,65950.0,65949.0,0.169288]
[1727445943017,0.011867,65950.0,65949.0,0.169288]
[1727445943278,0.011867,65950.0,65949.0,0.164288]
[1727445943997,0.011867,65950.0,65949.0,0.159288]
[1727445945221,0.16715494,65950.0,65949.0,0.154288]
[1727445945478,0.16715494,65950.0,65949.0,0.002656]
[1727445945479,0.35860043,65950.0,65949.0,0.002656]
[1727445945718,0.16715494,65950.0,65949.0,0.002656]
[1727445946052,0.31878494,65950.0,65949.0,0.002656]
[1727445946234,0.34178494,65950.0,65949.0,0.002656]
[1727445946469,0.52843314,65950.0,65949.0,0.002656]
[1727445946702,0.84380065,65950.0,65949.0,0.001656]
[1727445946939,0.85780065,65950.0,65949.0,0.001656]
[1727445947411,0.92355195,65950.0,65949.0,0.001656]
[1727445947641,0.93721267,65950.0,65949.0,0.002656]
[1727445947876,0.76682461,65950.0,65949.0,0.001656]
[1727445948137,0.78082461,65950.0,65949.0,0.002656]
[1727445948359,0.76682461,65950.0,65949.0,0.002656]
[1727445948786,0.78082461,65950.0,65949.0,0.002656]
[1727445949048,0.89401073,65950.0,65949.0,0.002656]
[1727445949268,0.88001073,65950.0,65949.0,0.002656]
[1727445949494,0.88000943,65950.0,65949.0,0.002656]
[1727445949731,0.228462,65936.0,65935.0,0.22790811]
[1727445949955,0.40674994,65936.0,65935.0,0.22790811]
[1727445950444,0.55841194,65936.0,65928.0,0.53126711]
[1727445950665,0.30695394,65935.0,65931.0,0.151673]
[1727445951066,0.15528794,65935.0,65929.0,0.303355]
[1727445951515,0.15528794,65935.0,65928.0,0.22790811]
[1727445951516,0.15528794,65935.0,65930.0,0.30335]
[1727445951730,0.15528794,65935.0,65934.0,0.151666]
[1727445951943,0.15528794,65935.0,65931.0,0.303345]
[1727445951944,0.15528794,65935.0,65933.0,0.151669]
[1727445952160,0.30695194,65935.0,65931.0,0.151673]
[1727445952832,0.32750073,65935.0,65931.0,0.151673]
[1727445953097,0.32750073,65935.0,65926.0,0.001654]
[1727445953098,0.174682,65927.0,65926.0,0.001654]
[1727445953344,0.174682,65927.0,65912.0,0.001654]
[1727445953345,0.123,65926.0,65912.0,0.001654]
[1727445953618,0.151715,65913.0,65912.0,0.001654]
[1727445953927,0.04530339,65918.0,65912.0,0.001654]
[1727445954185,0.06795509,65920.0,65912.0,0.001654]
[1727445954186,0.023,65917.0,65912.0,0.001654]
[1727445954409,0.04530339,65920.0,65912.0,0.001654]
[1727445954410,0.023,65919.0,65912.0,0.001654]
[1727445954649,0.023,65917.0,65914.0,0.151712]
[1727445954920,0.15528794,65916.0,65914.0,0.151711]
[1727445955149,0.15528794,65916.0,65915.0,0.15171]
[1727445956751,0.16328794,65916.0,65915.0,0.15171]
[1727445958922,0.17328794,65916.0,65915.0,0.15171]
[1727445960574,0.018,65916.0,65915.0,0.15171]
[1727445962915,0.008,65916.0,65915.0,0.15171]
[1727445963167,0.22790811,65931.0,65930.0,0.151676]
[1727445963437,0.38319605,65931.0,65930.0,0.151676]
[1727445963670,0.15528794,65931.0,65930.0,0.151676]
[1727445964627,0.15528794,65931.0,65927.0,0.303365]
[1727445964863,0.15528794,65931.0,65924.0,0.005]
[1727445964864,0.15528794,65930.0,65929.0,0.151678]
[1727445965579,0.03,65931.0,65930.0,0.151676]
[1727445965829,0.039,65931.0,65930.0,0.151676]
[1727445966063,0.000867,65950.0,65930.0,0.2828]
[1727445966302,0.000867,65950.0,65944.0,0.151643]
[1727445966303,0.152498,65950.0,65944.0,0.151643]
[1727445966549,0.000867,65950.0,65944.0,0.151643]
[1727445966775,0.15528794,65945.0,65942.0,0.303295]
[1727445967025,0.15528794,65945.0,65944.0,0.151643]
[1727445967279,0.15528794,65945.0,65944.0,0.37955111]
[1727445967516,0.000867,65950.0,65944.0,0.37955111]
[1727445967517,0.000867,65950.0,65949.0,0.166632]
[1727445968025,0.000867,65950.0,65949.0,0.168632]
[1727445968706,0.000867,65950.0,65949.0,0.166632]
[1727445969191,0.15615494,65950.0,65949.0,0.161632]
[1727445969427,0.15615494,65950.0,65949.0,0.156632]
[1727445970161,0.15615494,65950.0,65949.0,0.153632]
[1727445970406,0.17287043,65950.0,65949.0,0.002]
[1727445970656,0.34650043,65950.0,65949.0,0.002]
[1727445970898,0.19887043,65950.0,65935.0,0.22790811]
[1727445971161,0.19887043,65950.0,65942.0,0.22790811]
[1727445971162,0.174646,65943.0,65942.0,0.22790811]
[1727445971396,0.023,65942.0,65935.0,0.22790811]
[1727445971620,0.151662,65936.0,65935.0,0.22790811]
[1727445971844,0.303337,65934.0,65929.0,0.001656]
[1727445972089,0.151671,65932.0,65929.0,0.001656]
[1727445972318,0.15528794,65931.0,65929.0,0.001656]
[1727445972559,0.15528794,65931.0,65929.0,0.22956411]
[1727445972833,0.151676,65930.0,65929.0,0.001656]
[1727445973060,0.30696394,65930.0,65929.0,0.001656]
[1727445973323,0.15528794,65930.0,65929.0,0.001656]
[1727445973611,0.30696394,65930.0,65929.0,0.001656]
[1727445974562,0.16928794,65930.0,65929.0,0.001656]
[1727445974833,0.16928794,65930.0,65929.0,0.153334]
[1727445975072,0.16928794,65930.0,65929.0,0.001656]
[1727445975311,0.32096394,65930.0,65929.0,0.001656]
[1727445976323,0.33496394,65930.0,65929.0,0.001656]
[1727445976834,0.35796394,65930.0,65929.0,0.001656]
[1727445977077,0.42585332,65930.0,65929.0,0.001656]
[1727445977312,0.5851472,65930.0,65929.0,0.001656]
[1727445977514,0.67566638,65930.0,65929.0,0.001656]
[1727445977786,0.83205444,65930.0,65929.0,0.001656]
[1727445978040,0.81805444,65930.0,65929.0,0.001656]
[1727445978269,0.151699,65920.0,65919.0,0.22790811]
[1727445978535,0.32998694,65920.0,65919.0,0.22790811]
[1727445978779,0.023,65919.0,65912.0,0.001654]
[1727445979027,0.30700294,65913.0,65912.0,0.001654]
[1727445980696,0.15528794,65913.0,65912.0,0.001654]
[1727445980975,0.16928794,65913.0,65912.0,0.153371]
[1727445981224,0.32432435,65930.0,65919.0,0.151701]
[1727445981225,0.151717,65930.0,65919.0,0.151701]
[1727445981465,0.15528794,65920.0,65919.0,0.137701]
[1727445981720,0.15528794,65920.0,65919.0,0.123701]
[1727445982210,0.15528794,65920.0,65915.0,0.22956411]
[1727445982211,0.000868,65930.0,65929.0,0.151678]
[1727445982431,0.15615594,65930.0,65929.0,0.151678]
[1727445983580,0.17015594,65930.0,65929.0,0.151678]
[1727445983824,0.17715594,65930.0,65929.0,0.152678]
[1727445984310,0.17015594,65930.0,65929.0,0.151678]
[1727445984506,0.18115594,65930.0,65929.0,0.152678]
[1727445984725,0.16715594,65930.0,65929.0,0.152678]
[1727445984950,0.16715594,65930.0,65929.0,0.230078]
[1727445985191,0.18015594,65930.0,65929.0,0.153678]
[1727445985416,0.16783655,65930.0,65929.0,0.153678]
[1727445985906,0.15483655,65930.0,65929.0,0.152678]
[1727445986146,0.15683655,65930.0,65929.0,0.152678]
[1727445986624,0.16783655,65930.0,65929.0,0.153678]
[1727445986898,0.58468369,65930.0,65926.0,0.151684]
[1727445987134,0.59368369,65930.0,65929.0,0.001]
[1727445987366,0.44200769,65930.0,65929.0,0.001]
[1727445987630,0.44200769,65930.0,65929.0,0.152678]
[1727445987631,0.15283655,65930.0,65929.0,0.152678]
[1727445988093,0.14383655,65930.0,65929.0,0.151678]
[1727445988337,0.15383655,65930.0,65929.0,0.152678]
[1727445990079,0.14483655,65930.0,65929.0,0.228478]
[1727445990314,0.14483655,65930.0,65929.0,0.229478]
[1727445990315,0.15383655,65930.0,65929.0,0.229478]
[1727445990550,0.15383655,65930.0,65929.0,0.233478]
[1727445990551,0.14483655,65930.0,65929.0,0.233478]
[1727445991011,0.14783655,65930.0,65929.0,0.233478]
[1727445991248,0.14483655,65930.0,65929.0,0.233478]
[1727445991480,0.14483655,65930.0,65929.0,0.232478]
[1727445991714,0.14483655,65930.0,65929.0,0.233478]
[1727445991996,0.15383655,65930.0,65929.0,0.233478]
[1727445992233,0.14483655,65930.0,65929.0,0.232478]
[1727445992713,0.14483655,65930.0,65929.0,0.46038611]
[1727445992714,0.004,65930.0,65929.0,0.46038611]
[1727445992971,0.004,65930.0,65929.0,0.57238611]
[1727445993242,0.06868137,65950.0,65946.0,0.1929]
[1727445993243,0.22790811,65947.0,65946.0,0.1929]
[1727445993462,0.22790811,65947.0,65946.0,0.359539]
[1727445993723,0.000827,65950.0,65949.0,0.151632]
[1727445993973,0.000827,65950.0,65949.0,0.166632]
[1727445994224,0.000827,65950.0,65949.0,0.248232]
[1727445996399,0.002827,65950.0,65949.0,0.267232]
[1727445996633,0.001827,65950.0,65949.0,0.256232]
[1727445997118,0.002827,65950.0,65949.0,0.264232]
[1727445997820,0.001827,65950.0,65949.0,0.256232]
[1727445998056,0.001827,65950.0,65949.0,0.244232]
[1727445998289,0.001827,65950.0,65949.0,0.247232]
[1727445998521,0.000827,65950.0,65949.0,0.46714011]
[1727445998754,0.000827,65950.0,65949.0,0.254232]
[1727445999317,0.000827,65950.0,65949.0,0.249232]
[1727445999543,0.000827,65950.0,65949.0,0.250232]
[1727446000049,0.000827,65950.0,65949.0,0.247232]
[1727446000274,0.001827,65950.0,65949.0,0.257232]
[1727446000754,0.000827,65950.0,65949.0,0.25226441]
[1727446000972,0.000827,65950.0,65949.0,0.252232]
[1727446001436,0.000827,65950.0,65949.0,0.25526424]
[1727446001682,0.22790811,65967.0,65949.0,0.25526424]
[1727446001683,0.22790811,65978.0,65960.0,0.005]
[1727446001953,0.22790811,65978.0,65960.0,0.9874975]
[1727446002168,0.22790811,65978.0,65977.0,0.156567]
[1727446002656,0.000827,65979.0,65978.0,0.151565]
[1727446004554,0.003827,65979.0,65978.0,0.151565]
[1727446004782,0.000827,65979.0,65978.0,0.151565]
[1727446005261,0.005827,65979.0,65978.0,0.151565]
[1727446005493,0.007827,65979.0,65978.0,0.152565]
[1727446006019,0.000827,65979.0,65978.0,0.151565]
[1727446006258,0.000827,65979.0,65978.0,0.152565]
[1727446006259,0.008827,65979.0,65978.0,0.152565]
[1727446006495,0.008827,65979.0,65978.0,0.42399635]
[1727446006727,0.000827,65979.0,65978.0,0.419965]
[1727446006970,0.005827,65979.0,65978.0,0.419965]
[1727446007251,0.000827,65979.0,65978.0,0.419965]
[1727446007711,0.002827,65979.0,65978.0,0.419965]
[1727446008163,0.000827,65979.0,65978.0,0.419965]
[1727446008429,0.009827,65979.0,65978.0,0.57825294]
[1727446008672,0.22790811,66010.0,65995.0,0.436926]
[1727446008918,0.22790811,66010.0,65995.0,0.59221394]
[1727446008919,0.22790811,66003.0,65995.0,0.59221394]
[1727446009153,0.22790811,66010.0,66009.0,0.151494]
[1727446009393,0.22790811,66018.0,66017.0,0.156476]
[1727446009636,0.00018298,66023.0,66019.0,0.151471]
[1727446010310,0.00018298,66023.0,66019.0,0.156471]
[1727446010766,0.00018298,66023.0,66017.0,0.005]
[1727446011045,0.00018298,66023.0,66019.0,0.006]
[1727446011650,0.00018298,66023.0,66019.0,0.001]
[1727446011860,0.151481,66015.0,66010.0,0.005]
[1727446012059,0.16813904,66020.0,66012.0,0.22790811]
[1727446012060,0.302954,66017.0,66012.0,0.22790811]
[1727446012233,0.15528794,66016.0,66012.0,0.22790811]
[1727446012438,0.151485,66013.0,66012.0,0.22790811]
[1727446012649,0.151481,66015.0,66010.0,0.005]
[1727446012848,0.151483,66014.0,66010.0,0.005]
[1727446013049,0.15528794,66013.0,66007.0,0.005]
[1727446013259,0.15528794,66013.0,66003.0,0.156506]
[1727446013461,0.151495,66009.0,66006.0,0.22790811]
[1727446013789,0.15528794,66008.0,65995.0,0.005]
[1727446013990,0.151517,66000.0,65998.0,0.22790811]
[1727446014188,0.15528794,66000.0,65995.0,0.005]
[1727446014361,0.15528794,66000.0,65999.0,0.22790811]
[1727446014537,0.15528794,66000.0,65995.0,0.005]
[1727446014538,0.15528794,66000.0,65995.0,0.156525]
[1727446014842,0.15153,65994.0,65990.0,0.005]
[1727446014980,0.151535,65991.0,65990.0,0.22790811]
[1727446015184,0.30682494,65991.0,65986.0,0.151545]
[1727446015400,0.30682494,65991.0,65987.0,0.151544]
[1727446015836,0.15528794,65991.0,65988.0,0.151541]
[1727446016283,0.15528794,65991.0,65987.0,0.151544]
[1727446016483,0.15728794,65991.0,65987.0,0.151544]
[1727446016687,0.15728794,65991.0,65989.0,0.151539]
[1727446017115,0.15528794,65991.0,65989.0,0.151539]
[1727446017351,0.000828,65999.0,65993.0,0.005]
[1727446017544,0.15528794,65998.0,65996.0,0.151523]
[1727446017809,0.15528794,65998.0,65991.0,0.151534]
[1727446018012,0.151543,65988.0,65986.0,0.22790811]
[1727446018181,0.151545,65987.0,65986.0,0.22790811]
[1727446018623,0.15528794,65988.0,65982.0,0.005]
[1727446019011,0.30683094,65988.0,65983.0,0.151553]
[1727446019416,0.15528794,65988.0,65984.0,0.22790811]
[1727446019619,0.006,65991.0,65990.0,0.156538]
[1727446019879,0.004,65991.0,65990.0,0.156538]
[1727446020264,0.151525,65996.0,65992.0,0.151532]
[1727446020475,0.15528794,65996.0,65991.0,0.30307]
[1727446020686,0.15528794,65996.0,65990.0,0.005]
[1727446020849,0.15528794,65996.0,65992.0,0.151531]
[1727446021051,0.15528794,65996.0,65993.0,0.15153]
[1727446021255,0.000828,65999.0,65994.0,0.005]
[1727446021459,0.000828,65999.0,65998.0,0.156519]
[1727446021893,0.000828,65999.0,65997.0,0.1805]
[1727446022125,0.000828,65999.0,65995.0,0.156525]
[1727446022606,0.000828,65999.0,65995.0,0.005]
[1727446022807,0.000828,65999.0,65996.0,0.151523]
[1727446023012,0.000828,65999.0,65995.0,0.005]
[1727446023153,0.000828,65999.0,65996.0,0.151522]
[1727446023384,0.151524,65996.0,65995.0,0.005]
[1727446023754,0.15528794,65996.0,65987.0,0.005]
[1727446023886,0.151531,65993.0,65992.0,0.22790811]
[1727446024092,0.151531,65993.0,65986.0,0.005]
[1727446024093,0.15528794,65993.0,65986.0,0.005]
[1727446024327,0.151535,65991.0,65986.0,0.005]
[1727446024509,0.15528794,65992.0,65986.0,0.005]
[1727446024510,0.30682194,65992.0,65986.0,0.005]
[1727446024689,0.002,65996.0,65991.0,0.005]
[1727446024901,0.003,65996.0,65995.0,0.151526]
[1727446025147,0.002,65996.0,65993.0,0.454587]
[1727446025368,0.002,65996.0,65991.0,0.005]
[1727446025574,0.15528794,65995.0,65988.0,0.005]
[1727446025795,0.15528794,65995.0,65990.0,0.37944311]
[1727446026021,0.15528794,65995.0,65990.0,0.151535]
[1727446026295,0.15528794,65995.0,65988.0,0.005]
[1727446026296,0.151531,65993.0,65988.0,0.15654]
[1727446026478,0.151536,65991.0,65988.0,0.005]
[1727446026678,0.158531,65993.0,65989.0,0.15154]
[1727446026875,0.30681494,65995.0,65992.0,0.151533]
[1727446027076,0.006,65991.0,65990.0,0.151538]
[1727446027323,0.006,65991.0,65990.0,0.152538]
[1727446027566,0.006,65991.0,65990.0,0.151538]
[1727446027790,0.15528794,65991.0,65983.0,0.005]
[1727446028000,0.014,65993.0,65989.0,0.002]
[1727446028218,0.15528794,65992.0,65989.0,0.001]
[1727446028438,0.005,65991.0,65989.0,0.001]
[1727446028880,0.005,65991.0,65990.0,0.156538]
[1727446029097,0.005,65991.0,65990.0,0.441838]
[1727446029763,0.000828,65999.0,65998.0,0.151519]
[1727446030929,0.000828,65999.0,65998.0,0.16154912]
[1727446031142,0.000828,65999.0,65998.0,0.159519]
[1727446031364,0.000828,65999.0,65998.0,0.163519]
[1727446031895,0.147325,66008.0,65998.0,0.008]
[1727446032111,0.302987,66010.0,66004.0,0.005]
[1727446032112,0.28917114,66010.0,66004.0,0.005]
[1727446032328,0.303013,66004.0,65998.0,0.159519]
[1727446032551,0.15028794,66003.0,65999.0,0.151517]
[1727446032785,0.15151,66002.0,65998.0,0.005]
[1727446033007,0.29679694,66003.0,65998.0,0.005]
[1727446033255,0.0128511,66020.0,66002.0,0.005]
[1727446033489,0.454472,66011.0,66005.0,0.151502]
[1727446033728,0.151495,66009.0,66005.0,0.151503]
[1727446033967,0.45828494,66008.0,66002.0,0.005]
[1727446034188,0.151499,66007.0,66003.0,0.151507]
[1727446034453,0.30678694,66007.0,66003.0,0.151507]
[1727446034670,0.151502,66006.0,66002.0,0.005]
[1727446034905,0.151502,66006.0,65999.0,0.001]
[1727446034906,0.151515,66000.0,65999.0,0.001]
[1727446035158,0.30680294,66000.0,65999.0,0.001]